Cogmind - Beta 10.2 *** ADVENTURER MODE // 2020.12.10 @ 12:07:23 Player: NinjaBub504 Result: Destroyed by G-34 Mercenary with Small Laser Performance ------------- Evolutions (0) 0 Regions Visited (1) 200 Robots Destroyed (15) 75 Value Destroyed (271) 271 Prototype IDs (2) 40 Alien Tech Used (0) 0 Bonus (0) 0 TOTAL SCORE: 586 Bonus ------- None Cogmind --------- Core Integrity 0/250 Matter 290/300 Energy 96/100 System Corruption 1% Temperature Cool (12) Movement Core (50) Location -10/Materials Parts ------- > --- POWER (1) -------- (None) > --- PROPULSION (2) --- (None) > --- UTILITY (2) ------ Signal Interpreter > --- WEAPON (2) ------- Mining Claw > --- INVENTORY (4) ---- (None) Peak State ------------ > --- POWER ------------ Light Ion Engine > --- PROPULSION ------- VTOL Module > --- UTILITY ---------- Weight Redist. System Weight Redist. System > --- WEAPON ----------- Small Laser Light Assault Rifle > --- INVENTORY -------- (None) [Rating: 9] Favorites ----------- Power Light Ion Engine Engine Light Ion Engine Propulsion VTOL Module Wheel Wheel Hover Unit Backup Propulsion I Flight Unit VTOL Module Utility Sensor Array Device Sensor Array Processor Signal Interpreter Weapon Small Laser Energy Gun Small Laser Ballistic Gun Light Assault Rifle Special Weapon Mining Laser Slashing Weapon Mining Claw Build | -11 -10 ------- Run | Scr Mat Slots Evolved . | . . Power . | . . Propulsion . | . . Utility . | . . Weapon . | . . Parts Attached 18 | 5 13 Power 3 | 1 2 Engine 3 | 1 2 Core . | . . Reactor . | . . Propulsion 4 | 2 2 Treads . | . . Leg . | . . Wheel 3 | 2 1 Hover . | . . Flight 1 | . 1 Utility 4 | . 4 Device 3 | . 3 Storage . | . . Processor 1 | . 1 Hackware . | . . Protection . | . . Artifact . | . . Weapon 7 | 2 5 Energy Gun 2 | 1 1 Energy Cannon . | . . Ballistic Gun 2 | 1 1 Ballistic Cannon . | . . Launcher . | . . Special Weapon 1 | . 1 Impact Weapon . | . . Slashing Weapon 2 | . 2 Piercing Weapon . | . . Special Melee Weapon . | . . Unidentified Prototypes . | . . Parts Lost 4 | . 4 Power . | . . Propulsion . | . . Utility 1 | . 1 Weapon 3 | . 3 Highest Loss Streak 2 | . 2 Average Slot Usage (%) 68 | . 68 Engine 10 | . 10 Flight 9 | . 9 Device 14 | . 14 Processor 6 | . 6 Energy Gun 12 | . 12 Ballistic Gun 10 | . 10 Special Weapon 1 | . 1 Naked Turns . | . . Heaviest Build 6 | 5 6 Greatest Support 26 | 20 26 Greatest Overweight (x) 1 | . 1 Average Overweight (x) . | . . Largest Inventory Capacity 4 | 4 4 Average Capacity 4 | 4 4 Most Carried 2 | 2 1 Average Carried . | . . Final Capacity 4 | 4 4 Final Carried . | . . Class Distribution -------------------- 100% | Mutant Dominant Class ---------------- Mutant | -10/Materials Resources | -11 -10 ----------- Run | Scr Mat Matter Collected 394 | 195 199 Remotely . | . . Salvage Created 394 | . 394 Parts 28 | . 28 Haulers Intercepted 2 | . 2 Recyclers Shooed 2 | . 2 Parts Field Recycled . | . . Retrieved Matter . | . . Parts Self-Destructed . | . . Prevented . | . . Kills | -11 -10 ------- Run | Scr Mat Combat Hostiles Destroyed 10 | . 10 Guns 8 | . 8 AOE 2 | . 2 Classes Destroyed 4 | . 4 Hauler 2 | . 2 Watcher 3 | . 3 Swarmer 6 | . 6 Grunt 4 | . 4 Best Kill Streak 4 | . 4 Combat Bots Only 3 | . 3 Max Kills in Single Turn 2 | . 2 Gunslinging . | . . Exploded 2 | . 2 Melee . | . . Uniques/NPCs Destroyed . | . . Combat | -11 -10 -------- Run | Scr Mat Damage Taken 511 | . 511 Core 253 | . 253 Absorbed by Shields . | . . Core Remaining (%) 100 | 100 . Volleys Fired 52 | . 52 Largest 2 | . 2 Hottest 100 | . 100 Shots Fired 99 | . 99 Gun 96 | . 96 Cannon . | . . Launcher . | . . Special 3 | . 3 Kinetic 49 | . 49 Thermal 50 | . 50 Explosive . | . . Electromagnetic . | . . Robot Hit Streak 22 | . 22 Robot Miss Streak 4 | . 4 Penetration Max . | . . Secondary Targets 1 | . 1 Max Gunslinging Chain 1 | . 1 Shots Hit Robots 73 | . 73 Core Hits 25 | . 25 Critical Hits 1 | . 1 Critical Kills . | . . Critical Parts Destroyed 1 | . 1 Melee Attacks 6 | . 6 Impact . | . . Slashing 6 | . 6 Piercing . | . . Sneak Attacks . | . . Combat Hostiles . | . . Follow-up Attacks . | . . Damage Inflicted 951 | . 951 Guns 593 | . 593 Cannons . | . . Explosions 211 | . 211 Melee 97 | . 97 Ramming 2 | . 2 Kinetic 251 | . 251 Thermal 390 | . 390 Explosive 211 | . 211 Electromagnetic . | . . Impact . | . . Slashing 97 | . 97 Piercing . | . . Highest Corruption 1 | . 1 Average Corruption 1 | . 1 Corruption Purged . | . . Effects 2 | . 2 Message Errors 1 | . 1 Data Loss (minor) 1 | . 1 Overload Shots . | . . Overflow Damage 34 | . 34 Projectiles . | . . Explosions 34 | . 34 Melee . | . . Knockbacks . | . . Impact . | . . Kinetic . | . . Secondary . | . . Self-Inflicted Damage 77 | . 77 Shots 1 | . 1 Rammed 1 | . 1 Targets Rammed 1 | . 1 Kicked . | . . Crushed . | . . Highest Temperature 117 | . 117 Average Temperature 35 | . 35 Received Heat Transfer 243 | . 243 Siege Activations . | . . Robots Corrupted . | . . Combat Hostiles . | . . Parts Fried . | . . Impact Corruptions . | . . Robots Melted . | . . Combat Hostiles . | . . Parts Melted 1 | . 1 Heat Transferred 900 | . 900 Parts Sabotaged . | . . Parts Stolen . | . . Parts Stripped . | . . Power Chain Reactions . | . . Missiles Intercepted . | . . Alert | -11 -10 ------- Run | Scr Mat Peak Influence 242 | . 242 Initial . | . . Average 111 | . 121 Maximum Alert Level 1 | . 1 Low Security (%) 77 | 100 75 Level 1 22 | . 24 Level 2 . | . . Level 3 . | . . Level 4 . | . . Level 5 . | . . High Security . | . . Max Security . | . . Squads Dispatched 3 | . 3 Investigation 3 | . 3 Extermination . | . . Reinforcement . | . . Assault . | . . Garrison . | . . Intercept . | . . Construction Impeded . | . . Haulers Reinforced . | . . Stealth | -11 -10 --------- Run | Scr Mat Distress Signals 1 | . 1 Communications Jammed . | . . Distress Signals . | . . Times Spotted 23 | . 23 Peak Tracking Total 5 | . 5 Tactical Retreats 1 | . 1 Traps | -11 -10 ------- Run | Scr Mat Traps Triggered 1 | . 1 Indirectly . | . . Trap Hack Attempts . | . . Triggered . | . . Disarmed . | . . Reprogrammed 13 | . 13 Reused . | . . Traps Extracted . | . . Installed . | . . Triggered . | . . Machines | -11 -10 ---------- Run | Scr Mat Machines Disabled 1 | . 1 Max in Single Turn 1 | . 1 Machines Sabotaged . | . . Garrisons Compromised . | . . Overloaded Fab Kills . | . . Fab Network Shutdowns . | . . Hacking | -11 -10 --------- Run | Scr Mat Machines Accessed 10 | . 10 Terminals 8 | . 8 Fabricators . | . . Repair Stations 1 | . 1 Recycling Units 1 | . 1 Scanalyzers . | . . Garrison Access . | . . Total Hacks 33 | . 33 Successful 27 | . 27 Failed 6 | . 6 Catastrophic . | . . Database Lockouts . | . . Manual 11 | . 11 Terminals 27 | . 27 Fabricators . | . . Repair Stations 3 | . 3 Recycling Units 3 | . 3 Scanalyzers . | . . Garrison Access . | . . Terminal Hacks 13 | . 13 Record 3 | . 3 Prototype ID Bank 1 | . 1 Emergency Access Points 1 | . 1 Alert Level 1 | . 1 Locate Traps 2 | . 2 Reprogram Traps 3 | . 3 Registered Prototypes 1 | . 1 Zone Layout 1 | . 1 Fabricator Hacks . | . . Repair Station Hacks 3 | . 3 Scan Component 1 | . 1 Repair 1 | . 1 Refit 1 | . 1 Recycling Unit Hacks 2 | . 2 Process 1 | . 1 Report Inventory 1 | . 1 Scanalyzer . | . . Garrison Access Hacks . | . . Unauthorized Hacks 9 | . 9 Terminals 8 | . 8 Botnet 8 | . 8 Fabricators . | . . Repair Stations . | . . Recycling Units 1 | . 1 Monitor 1 | . 1 Scanalyzers . | . . Garrison Access . | . . Data Cores Recovered . | . . Used . | . . Hacking Detections 10 | . 10 Full Trace Events 4 | . 4 Feedback Events . | . . Feedback Blocked . | . . Robot Schematics Acquired . | . . Robots Built . | . . Matter . | . . Time . | . . Total Robot Build Rating . | . . Part Schematics Acquired . | . . Parts Built . | . . Matter . | . . Time . | . . Total Part Build Rating . | . . Parts Repaired 1 | . 1 Time 26 | . 26 Parts Recycled . | . . Recycled Matter 7 | . 7 Retrieved Matter . | . . Retrieved Components . | . . Parts Scanalyzed . | . . Part Schematics Acquired . | . . Parts Damaged . | . . Bothacking | -11 -10 ------------ Run | Scr Mat Used RIF Installer . | . . Robots Hacked . | . . Non-combat . | . . Combat . | . . Robot Hacks Applied . | . . Relay Couplers Released . | . . Robots Rewired . | . . Allies Hacked . | . . Hacks Repelled . | . . Allies | -11 -10 -------- Run | Scr Mat Total Allies . | . . Largest Group . | . . Highest-Rated Group . | . . Highest-Rated Ally . | . . Total Orders . | . . Ally Attacks . | . . Total Damage . | . . Kills . | . . Allies Corrupted . | . . Allies Melted . | . . Intel | -11 -10 ------- Run | Scr Mat Robot Analysis Total . | . . Derelict Logs Recovered . | . . Drone Launches . | . . Drone Recoveries . | . . Exploration | -11 -10 ------------- Run | Scr Mat Turns Passed 693 | 54 639 Spaces Moved 601 | 61 540 Core 367 | 14 353 Treads . | . . Legs . | . . Wheels 52 | 47 5 Hover . | . . Flight 182 | . 182 Fastest Speed 40 | 50 40 Average Speed 63 | 73 62 Slowest Speed 120 | 80 120 Overloaded Moves . | . . Propulsion Burnouts . | . . Robots Hopped 1 | . 1 Cave-ins Triggered . | . . Exploration Rate (%) 38 | 4 73 Regions Visited 1 Branch Regions . Pre-discovered Areas . | . . Known Exits Taken . | . . Unknown Exits Taken 1 | 1 . Scrap Searched . | . . Spaces Dug . | . . Terrain Destroyed 28 | . 28 Melee . | . . Projectile 1 | . 1 AOE 27 | . 27 Terrain Rammed . | . . Walls Destroyed . | . . Machines Disabled . | . . Actions | -11 -10 --------- Run | Scr Mat Total 809 | 70 739 Wait 104 | . 104 Move 598 | 60 538 Hop 1 | . 1 Pick Up 17 | 5 12 Fast Attach . | . . Attach 15 | 5 10 Detach . | . . Swap 3 | . 3 Drop 12 | . 12 Fire 52 | . 52 Melee 6 | . 6 Ram 1 | . 1 Kick . | . . Crush . | . . Escape Stasis . | . . Rewire . | . . Trap . | . . Miscellaneous . | . . Route ------- -11/Scrapyard -10/Materials (discovered 3 exits: [*Mat] / *Min x2) History --------- Turn | Location | Event 8 | -11/Scrapyard | Discovered new exit (range 15) 55 | -11/Scrapyard | Entered Materials 55 | -10/Materials | Discovered new exit (range 15) 213 | -10/Materials | Discovered new exit (range 12) 248 | -10/Materials | Repaired Lgt. Assault Rifle 323 | -10/Materials | Build established: Mutant 489 | -10/Materials | Discovered new exit (range 8) 502 | -10/Materials | Identified exit to Mines 679 | -10/Materials | Core integrity fell below 50% 690 | -10/Materials | Core integrity fell below 20% 694 | -10/Materials | Destroyed by G-34 Mercenary with Small Laser Last Messages --------------- U-05 Engineer lays Concrete. System corrupted: Component data lost. U-05 Engineer lays Concrete. Connecting with Terminal... >>Trojan(Botnet) Trojan loaded successfully. Testing... Terminal linked with 7 systems. Awaiting botnet instructions. >>Inventory(Prototypes) Retrieving prototype inventory records... No registered prototype stockpiles. ALERT: Suspicious activity at Terminal M007. Dispatching Investigation squad. Acquired Mining Claw. Dropped Mining Claw. Sensor Array destroyed. Mining Laser destroyed. Acquired Mining Claw. G-34 Mercenary Heat Sink severed. Map ----- +----------------------------------------------------+ | !> #?# ## ####### #### | | #?# ## #?????# | | #######+## ##+##### ## #?????#]]]][ | | ##?# ######### ######+##### #?????#]]]][ | | ???# """ #???????# ! !#???# # #?????###### | | ???# "T" #???????# #???# # #?########## | | ???# #???????# """ #???# # #??????????? | | ???# =! #???????# """ #???# # #??????????? | | ???# =! #???????# """ #???# + #??????????? | | ???########???????########???# # #??????????? | | ??????????????????????###########+### ###????????? | | ??????????????????????# #????????? | | ??????????????????????# +????????? | | ??????????????????????# #????????? | | ??????????????????????# ########### #????????? | | ??????????????????????# #?????????# #????????? | | ??????????????????????# #?????????# #????????? | | ????????#########+##### #?????????# #????????? | | ????????# #?????????# #????????? | | ????????# #?????????# #????????? | | ????????#"" #?????????? #????????? | | #########"Y ########??????"??? +????????? | | ] #"" #??????????? """?? #????????? | | # !!! #?????????"" """ # #????????? | | # !!! ######## g # #????????? | | """ # !!! @/g g # ????????? | | ? """"" + #######g#######??? ?????????? | | ? """"" # #??????##?????????????????????? | | ??""""" #########+######?????????????????????????? | | ?? """ #??# """ #?????????????????????????? | | ?? #??# "T" #?????????????????????????? | | ??#######??# #?????????????????????????? | | ???????????# """"" #?????????????????????????? | | ???????????# """"""""" #?????????????????????????? | | ???????????# """ """ #?????????????????????????? | | ???????????# #?????????????????????????? | | ???????????#############?????????????????????????? | | | | | | | | | | | | | | | | | | | | | | | | | | | +----------------------------------------------------+ Best States ------------- Heat Dissipation 25 Energy Generation 10 Energy Capacity 125 Matter Stores 300 Matter Capacity 300 Sight Range 16 Robot Scan Range 10 Terrain Scan Density 10 Additional Mass Support 12 Resistance: KI 20 Resistance: TH 20 Resistance: EX 20 Resistance: EM 20 Resistance: I 20 Resistance: S 20 Resistance: P 20 Evasion (%) 62 Offensive Hacking 10 Item Schematics ----------------- None Robot Schematics ------------------ None Fabricated ------------ Nothing Alien Tech Used ----------------- None Achievements -------------- None Challenges ------------ None Game ------ Seed BladeNodeChainsword Manual? 0 Play Time 00:12:28 Cumulative 9.8 hours Start 2020.12.10 @ 11:55:06 End 2020.12.10 @ 12:07:23 Sessions 1 Manual Loads 0 Difficulty Adventurer Special Mode None Game No. 15 Rogue 6 Adventurer 9 Explorer 0 Win Type - Total 0 Types 0/0/0/0/0/0/0/0/0 Lore% 17 Gallery% 19 Achievement% 17 Wizard Run 0 Options --------- ASCII 0 Keyboard 0 Movement Mouse Keybinds 0 Fullscreen 2 Font 18/Terminus Map View 76x50 Tactical HUD 0 Map Filters NONE Filters NONE Steam 1 RUN: 3e3ce3bd-303d-44b7-88c1-7b046e2d5e0e